bitfinex-derivatives/quotes_ETHF0:USTF0_20210107
["timestamp","ask_amount","ask_price","bid_price","bid_amount"]
[1609977601399,7.377,1204.6,1202.9,30.0]
[1609977602097,7.377,1204.6,1202.9,32.2409]
[1609977602297,3.674,1205.7,1202.9,32.2409]
[1609977603199,4.00959,1205.6,1205.5,4.00959]
[1609977603507,4.00959,1205.6,1203.0,11.6747]
[1609977603701,4.00959,1205.6,1203.1,30.0]
[1609977604703,4.07381176,1206.7,1203.1,30.0]
[1609977605105,0.39981176,1206.7,1203.1,30.0]
[1609977605305,4.40940176,1206.7,1206.4,4.00959]
[1609977606510,0.39981176,1206.7,1206.4,4.00959]
[1609977606908,22.35546841,1209.8,1206.4,4.00959]
[1609977607311,4.00959,1207.8,1207.6,4.00959]
[1609977607513,22.35546841,1209.8,1207.6,4.00959]
[1609977607910,11.051,1209.8,1207.6,4.00959]
[1609977608913,0.5,1210.0,1207.6,4.00959]
[1609977609121,4.174,1210.0,1207.6,4.00959]
[1609977609311,4.00959,1208.4,1208.2,4.00959]
[1609977609713,4.174,1210.0,1208.2,4.00959]
[1609977610115,4.174,1210.0,1203.1,30.0]
[1609977610313,2.6307,1209.8,1203.1,30.0]
[1609977610513,4.07381176,1208.7,1203.1,30.0]
[1609977611315,4.00959,1207.3,1207.0,4.00959]
[1609977611515,4.07381176,1208.7,1207.0,4.00959]
[1609977613016,0.39981176,1208.7,1207.0,4.00959]
[1609977613415,0.39981176,1208.7,1208.6,4.00959]
[1609977613813,0.39981176,1208.7,1208.6,6.12579]
[1609977614917,0.39981176,1208.7,1208.6,2.1162]
[1609977618123,0.5,1210.0,1208.6,2.1162]
[1609977618820,0.5,1210.0,1208.5,4.00959]
[1609977619520,4.00959,1209.5,1208.5,4.00959]
[1609977619721,0.5,1210.0,1208.5,4.00959]
[1609977621422,4.00959,1209.4,1209.1,4.00959]
[1609977621622,0.5,1210.0,1209.1,4.00959]
[1609977623327,4.00959,1209.4,1209.1,4.00959]
[1609977624127,4.00959,1209.4,1207.6,0.40416971]
[1609977625429,4.00959,1209.4,1209.2,4.00959]
[1609977625631,0.5,1210.0,1209.2,4.00959]
[1609977626030,0.5,1210.0,1207.6,0.40416971]
[1609977627531,0.5,1210.0,1209.9,4.00959]
[1609977627731,0.5,1210.0,1209.9,6.94679]
[1609977628032,0.5,1210.0,1207.6,0.40416971]
[1609977629331,4.00959,1209.7,1209.0,4.00959]
[1609977629532,0.5,1210.0,1209.0,4.00959]
[1609977631033,0.5,1210.0,1207.6,0.40416971]
[1609977631433,0.5,1210.0,1209.1,4.00959]
[1609977633341,0.5,1210.0,1209.8,4.00959]
[1609977636543,0.5,1210.0,1207.6,0.40416971]
[1609977637343,4.00959,1209.8,1209.7,4.00959]
[1609977637543,4.00959,1209.8,1207.6,0.40416971]
[1609977637744,0.5,1210.0,1207.6,0.40416971]
[1609977639343,4.00959,1209.6,1209.2,4.00959]
[1609977639743,4.00959,1209.6,1207.6,0.40416971]
[1609977641345,4.00959,1209.3,1208.4,4.00959]
[1609977641545,4.00959,1209.3,1207.6,0.40416971]
[1609977643447,4.00959,1207.7,1207.6,0.40416971]
[1609977643645,2.4717,1209.0,1207.6,0.40416971]
[1609977643845,2.4717,1209.0,1207.2,4.00959]
[1609977644947,2.2735,1209.5,1207.2,4.00959]
[1609977645347,4.00959,1208.8,1208.7,4.00959]
[1609977645547,3.5387,1210.0,1208.7,4.00959]
[1609977645746,0.5,1210.0,1208.7,4.00959]
[1609977647347,0.5,1210.0,1209.6,4.00959]
[1609977649350,0.5,1210.0,1209.9,4.00959]
[1609977652951,0.5,1210.0,1209.5,0.40416971]
[1609977653356,0.5,1210.0,1209.0,4.00959]
[1609977653958,0.5,1210.0,1203.3,39.4713]
[1609977655554,4.00959,1209.4,1208.1,4.00959]
[1609977656154,0.5,1210.0,1208.1,4.00959]
[1609977657557,0.5,1210.0,1209.4,4.00959]
[1609977659356,0.5,1210.0,1203.3,39.4713]
[1609977659558,0.5,1210.0,1209.9,4.00959]
[1609977661658,0.5,1210.0,1203.3,39.4713]
[1609977663459,4.00959,1209.5,1207.9,4.00959]
[1609977663959,0.5,1210.0,1207.9,4.00959]
[1609977665559,4.00959,1209.8,1208.9,4.00959]
[1609977665861,0.5,1210.0,1208.9,4.00959]
[1609977667463,4.00959,1209.7,1208.9,4.00959]
[1609977668065,4.00959,1209.7,1207.9,61.5847]
[1609977669170,0.5,1210.0,1207.9,61.5847]
[1609977669569,0.5,1210.0,1209.0,4.00959]
[1609977673482,0.5,1210.0,1209.4,4.00959]
[1609977675482,0.5,1210.0,1209.9,4.00959]
[1609977682992,0.5,1210.0,1209.3,6.0585]
[1609977683194,0.5,1210.0,1209.2,5.8521]
[1609977683693,0.5,1210.0,1209.1,53.23809]
[1609977684296,0.5,1210.0,1209.6,57.2502]
[1609977684494,0.5,1210.0,1209.1,4.00959]
[1609977685594,4.00959,1209.6,1208.2,59.7096]
[1609977686993,0.5,1210.0,1208.2,59.7096]
[1609977687493,4.00959,1209.6,1208.8,4.00959]
[1609977687693,0.5,1210.0,1208.8,4.00959]
[1609977689496,0.5,1210.0,1209.5,4.00959]
[1609977691696,0.5,1210.0,1209.9,4.00959]
[1609977691897,0.5,1210.0,1208.5,5.5606]
[1609977693600,0.5,1210.0,1209.7,4.00959]
[1609977695604,0.5,1210.0,1209.9,4.00959]
[1609977696805,0.5,1210.0,1208.9,47.2661]
[1609977697706,4.00959,1209.3,1208.9,51.27569]
[1609977698708,0.5,1210.0,1208.9,51.27569]
[1609977699310,0.5,1210.0,1208.9,81.27569]
[1609977699711,0.5,1210.0,1209.9,4.00959]
[1609977702012,0.5,1210.0,1209.2,6.0607]
[1609977702716,0.5,1210.0,1208.9,47.2661]
[1609977703219,0.5,1210.0,1208.9,62.8723]
[1609977703621,4.00959,1209.8,1209.6,4.00959]
[1609977703835,10.5,1210.0,1209.6,4.00959]
[1609977704822,10.5,1210.0,1208.9,62.8723]
[1609977705623,4.00959,1209.7,1209.3,4.00959]
[1609977706428,10.5,1210.0,1209.3,4.00959]
[1609977707730,10.5,1210.0,1209.8,4.00959]
[1609977709235,10.5,1210.0,1208.9,62.8723]
[1609977709732,4.00959,1209.7,1209.4,4.00959]
[1609977711333,10.5,1210.0,1209.4,4.00959]
[1609977711636,10.5,1210.0,1209.9,4.00959]
[1609977713238,10.5,1210.0,1208.9,57.4102]
[1609977713834,10.5,1210.0,1209.9,4.00959]
[1609977714035,10.5,1210.0,1208.9,57.4102]
[1609977715640,10.5,1210.0,1209.9,4.00959]
[1609977716041,10.5,1210.0,1208.9,57.4102]
[1609977717640,4.00959,1209.6,1208.9,57.4102]
[1609977719142,4.00959,1209.6,1207.3,67.8937]
[1609977719342,4.00959,1209.6,1207.3,97.8937]
[1609977719841,4.00959,1209.2,1209.1,4.00959]
[1609977721342,10.5,1210.0,1209.1,4.00959]
[1609977721743,10.5,1210.0,1209.8,4.00959]
[1609977723446,10.5,1210.0,1209.2,60.0341]
[1609977723645,14.50959,1210.0,1209.9,4.00959]
[1609977724147,14.50959,1210.0,1209.2,60.0341]
[1609977725647,4.00959,1209.8,1209.7,4.00959]
[1609977725847,4.00959,1209.8,1209.2,60.0341]
[1609977727649,10.5,1210.0,1209.6,4.00959]
[1609977729653,4.00959,1209.8,1209.6,4.00959]
[1609977730451,4.00959,1209.8,1209.2,60.0341]
[1609977730952,10.5,1210.0,1209.2,60.0341]
[1609977731353,10.5,1210.0,1208.8,62.8129]
[1609977731752,4.00959,1209.6,1209.5,4.00959]
[1609977733355,10.5,1210.0,1209.5,4.00959]
[1609977733856,14.50959,1210.0,1209.8,4.00959]
[1609977734361,10.5,1210.0,1209.8,4.00959]
[1609977737367,10.5,1210.0,1208.8,62.8129]
[1609977737768,10.5,1210.0,1209.7,4.00959]
[1609977739670,4.00959,1209.9,1209.7,4.00959]
[1609977744672,5.66169,1209.9,1209.7,4.00959]
[1609977744873,4.00959,1209.9,1209.2,61.5136]
[1609977745875,4.00959,1209.3,1209.2,61.5136]
[1609977748074,5.67559,1209.3,1209.2,61.5136]
[1609977749178,5.67559,1209.3,1207.8,65.4993]
[1609977749775,4.00959,1207.9,1207.8,69.50889]
[1609977750376,2.7473,1209.9,1207.8,69.50889]
[1609977751778,2.7473,1209.9,1208.2,4.00959]
[1609977752279,2.7473,1209.9,1208.2,34.00959]
[1609977752479,75.6256,1210.0,1208.2,34.00959]
[1609977753880,79.63519,1210.0,1208.2,30.0]
[1609977754982,79.63519,1210.0,1208.3,30.0]
[1609977755887,75.6256,1210.0,1209.4,4.00959]
[1609977757884,79.63519,1210.0,1208.4,30.0]
[1609977758283,81.29609,1210.0,1208.4,30.0]
[1609977758582,77.2865,1210.0,1208.4,30.0]
[1609977758784,75.6256,1210.0,1208.4,30.0]
[1609977758983,75.6256,1210.0,1208.5,30.0]
[1609977759585,10.5,1210.0,1209.1,55.8435]
[1609977759786,10.5,1210.0,1209.9,4.00959]
[1609977760687,12.1735,1210.0,1209.9,4.00959]
[1609977761788,10.5,1210.0,1209.9,34.00959]
[1609977762792,10.5,1210.0,1209.9,4.00959]
[1609977763191,10.5,1210.0,1209.9,34.00959]
[1609977763991,12.1669,1210.0,1209.9,34.00959]
[1609977764291,10.5,1210.0,1209.9,34.00959]
[1609977764592,10.5,1210.0,1209.9,4.00959]
[1609977765194,12.1707,1210.0,1209.9,34.00959]
[1609977765393,7.2136,1210.0,1209.9,34.00959]
[1609977767998,8.8641,1210.0,1209.9,34.00959]
[1609977768501,8.8641,1210.0,1209.9,4.00959]
[1609977768699,8.8641,1210.0,1209.9,34.00959]
[1609977768900,7.2136,1210.0,1209.9,34.00959]
[1609977770001,8.8722,1210.0,1209.9,34.00959]
[1609977770200,7.2136,1210.0,1209.9,34.00959]
[1609977771601,7.2136,1210.0,1209.9,4.00959]
[1609977772302,7.2136,1210.0,1209.9,34.00959]
[1609977775913,7.2136,1210.0,1209.9,4.00959]
[1609977777510,7.2136,1210.0,1209.9,34.00959]
[1609977778614,7.2136,1210.0,1209.9,4.00959]
[1609977778812,7.2136,1210.0,1209.9,34.00959]
[1609977779514,8.8792,1210.0,1209.9,34.00959]
[1609977779813,7.2136,1210.0,1209.9,4.00959]
[1609977780315,7.2136,1210.0,1209.9,34.00959]
[1609977781217,7.2136,1210.0,1209.9,4.00959]
[1609977781515,7.2136,1210.0,1209.9,34.00959]
[1609977783118,8.8874,1210.0,1209.9,34.00959]
[1609977783620,0.9854,1210.0,1209.9,34.00959]
[1609977783822,0.39981176,1210.6,1209.9,34.00959]
[1609977785525,5.0,1211.0,1209.9,34.00959]
[1609977785924,5.0,1211.0,1210.9,4.00959]
[1609977786124,5.0,1211.0,1210.9,34.00959]
[1609977789628,6.6663,1211.0,1210.9,34.00959]
[1609977790127,6.6663,1211.0,1210.9,4.00959]
[1609977790931,5.0,1211.0,1208.1,30.0]
[1609977791929,5.0,1211.0,1210.9,4.00959]
[1609977792930,5.0,1211.0,1210.9,34.00959]
[1609977792931,6.6372,1211.0,1210.9,34.00959]
[1609977793531,5.0,1211.0,1210.9,34.00959]
[1609977794031,0.39981176,1212.6,1210.9,34.00959]
[1609977795231,0.39981176,1212.6,1210.9,4.00959]
[1609977795432,0.39981176,1212.6,1210.9,34.00959]
[1609977795932,0.39981176,1212.6,1211.9,4.00959]
[1609977797834,0.39981176,1212.6,1211.9,34.00959]
[1609977799035,0.39981176,1212.6,1211.9,4.00959]
[1609977801945,4.00959,1212.5,1211.9,4.00959]
[1609977803645,1.628,1212.3,1211.9,4.00959]
[1609977803847,4.00959,1212.5,1211.9,4.00959]
[1609977804746,1.6416,1212.2,1211.9,4.00959]
[1609977804945,6.6717,1212.0,1211.9,4.00959]
[1609977805144,5.0,1212.0,1211.9,4.00959]
[1609977805955,9.00959,1212.0,1211.9,4.00959]
[1609977806154,5.0,1212.0,1211.5,56.0641]
[1609977806454,5.0,1212.0,1211.4,0.40416971]
[1609977807955,5.0,1212.0,1211.9,4.00959]
[1609977811956,6.6713,1212.0,1211.9,4.00959]
[1609977812256,5.0,1212.0,1211.9,4.00959]
[1609977812457,5.0,1212.0,1211.4,0.40416971]
[1609977813260,6.6703,1212.0,1211.4,0.40416971]
[1609977813758,5.0,1212.0,1211.4,0.40416971]
[1609977813958,9.00959,1212.0,1211.6,4.00959]
[1609977814159,5.0,1212.0,1211.6,4.00959]
[1609977815962,5.0,1212.0,1211.9,4.00959]
[1609977816363,5.0,1212.0,1211.9,34.00959]
[1609977817063,0.39981176,1212.6,1211.9,34.00959]
[1609977817963,0.39981176,1212.6,1212.5,4.00959]
[1609977818165,0.39981176,1212.6,1212.5,34.00959]
[1609977818767,4.00959,1214.1,1212.5,34.00959]
[1609977818967,3.674,1216.0,1212.5,34.00959]
[1609977819167,1.6436,1213.6,1212.5,34.00959]
[1609977819466,5.9705,1216.4,1212.5,34.00959]
[1609977819667,5.819,1217.6,1212.5,34.00959]
[1609977819868,5.9499,1216.4,1212.5,4.00959]
[1609977820069,4.00959,1214.3,1212.9,4.00959]
[1609977821771,1.667,1213.9,1212.9,4.00959]
[1609977821971,4.00959,1214.3,1212.9,4.00959]
[1609977824072,5.9869,1216.3,1212.9,4.00959]
[1609977824272,1.6398,1216.1,1212.9,4.00959]
[1609977824472,5.9869,1216.3,1212.9,4.00959]
[1609977824875,1.6638,1213.6,1212.9,4.00959]
[1609977825077,5.9869,1216.3,1212.9,4.00959]
[1609977825276,1.6377,1214.3,1212.9,4.00959]
[1609977825476,57.4337,1215.7,1212.9,4.00959]
[1609977825880,1.6242,1213.9,1212.9,4.00959]
[1609977826175,4.00959,1214.4,1212.9,4.00959]
[1609977827178,4.00959,1214.4,1212.9,34.00959]
[1609977827979,1.6573,1214.3,1212.9,34.00959]
[1609977828178,4.00959,1214.4,1212.9,4.00959]
[1609977828881,4.00959,1214.4,1212.9,34.00959]
[1609977829079,57.4337,1215.7,1212.9,34.00959]
[1609977829280,1.6357,1214.6,1212.9,34.00959]
[1609977829780,57.4337,1215.7,1212.9,34.00959]
[1609977829980,4.00959,1214.8,1212.9,34.00959]
[1609977830482,1.6458,1215.0,1212.9,34.00959]
[1609977830681,6.6717,1213.0,1212.9,34.00959]
[1609977830882,5.0,1213.0,1212.9,34.00959]
[1609977837186,5.0,1213.0,1212.9,4.00959]
[1609977837689,5.0,1213.0,1212.9,34.00959]
[1609977841693,6.6443,1213.0,1212.9,36.79799]
[1609977841899,5.0,1213.0,1212.9,36.79799]
[1609977842895,6.658,1213.0,1212.9,36.79799]
[1609977844096,1.658,1213.0,1212.9,36.79799]
[1609977844499,10.0,1214.0,1212.9,36.79799]
[1609977846200,10.0,1214.0,1213.9,4.00959]
[1609977846601,10.0,1214.0,1212.9,2.7884]
[1609977846800,10.0,1214.0,1212.8,30.0]
[1609977847403,10.0,1214.0,1212.7,66.9209]
[1609977848105,4.00959,1212.8,1212.7,66.9209]
[1609977849707,4.00959,1212.8,1209.0,30.0]
[1609977849908,4.00959,1212.8,1209.1,30.0]
[1609977850108,4.00959,1211.5,1211.3,4.00959]
[1609977850310,4.00959,1211.5,1209.1,30.0]
[1609977851009,4.00959,1211.5,1209.2,30.0]
[1609977852011,4.00959,1211.5,1209.3,30.0]
[1609977852911,4.00959,1211.5,1206.2,30.0]
[1609977853720,4.00959,1211.5,1206.4,30.0]
[1609977854012,4.00959,1211.5,1206.4,33.1118]
[1609977854211,4.00959,1209.8,1209.6,4.00959]
[1609977854413,4.00959,1209.8,1206.4,33.1118]
[1609977856215,2.7061,1211.0,1206.4,33.1118]
[1609977858218,4.00959,1209.5,1208.7,4.00959]
[1609977858618,4.00959,1209.5,1206.4,33.1118]
[1609977860119,4.00959,1209.3,1208.8,4.00959]
[1609977861720,5.64619,1209.3,1208.8,4.00959]
[1609977861919,5.64619,1209.3,1206.4,33.1118]
[1609977862119,4.00959,1208.8,1208.2,4.00959]
[1609977862919,48.5013,1210.0,1208.2,4.00959]
[1609977863120,48.5013,1210.0,1208.2,36.24819]
[1609977864321,48.5013,1210.0,1209.0,4.00959]
[1609977864620,48.5013,1210.0,1209.0,7.33239]
[1609977865120,48.5013,1210.0,1209.0,2.33239]
[1609977866219,4.00959,1209.7,1209.0,2.33239]
[1609977868220,4.00959,1209.1,1209.0,2.33239]
[1609977869626,5.68269,1209.1,1208.2,2.2386]
[1609977869824,7.79449,1209.1,1208.2,2.2386]
[1609977870025,7.79449,1209.1,1206.4,33.1118]
[1609977870225,3.7849,1209.1,1206.4,33.1118]
[1609977870727,3.7849,1209.1,1206.4,3.1118]
[1609977870924,3.7849,1209.1,1206.2,30.0]
[1609977872124,2.1118,1209.1,1206.2,30.0]
[1609977872325,49.4489,1209.0,1207.4,4.00959]
[1609977872525,49.4489,1209.0,1206.9,67.1858]
[1609977874231,4.00959,1207.0,1206.9,67.1858]
[1609977875431,4.00959,1207.0,1206.9,64.1277]
[1609977875631,4.00959,1207.0,1203.1,5.8557]
[1609977875830,67.1049,1205.9,1203.1,5.8557]
[1609977876330,67.1049,1205.9,1204.5,4.00959]
[1609977876331,4.00959,1204.7,1204.5,4.00959]
[1609977876533,67.1049,1205.9,1203.1,5.8557]
[1609977877434,67.1049,1205.9,1203.2,30.0]
[1609977877634,67.1049,1205.9,1203.2,32.0867]
[1609977878239,4.00959,1205.0,1204.7,4.00959]
[1609977878439,4.00959,1205.0,1203.2,2.0867]
[1609977879040,5.64979,1205.0,1203.2,2.0867]
[1609977880242,4.00959,1203.3,1203.2,2.0867]
[1609977880643,1.6402,1205.0,1203.2,2.0867]
[1609977880942,11.2742,1205.0,1203.2,2.0867]
[1609977881141,9.634,1205.0,1203.2,2.0867]
[1609977882244,4.00959,1203.3,1203.2,2.0867]
[1609977882646,1.6702,1203.9,1202.9,51.6868]
[1609977884345,4.00959,1203.0,1202.9,51.6868]
[1609977885947,5.66969,1203.0,1202.9,51.6868]
[1609977886247,5.66969,1203.0,1197.5,11.09720714]
[1609977886248,8.01899,1203.0,1197.5,11.09720714]
[1609977886648,64.9106,1201.2,1198.2,66.607]
[1609977886847,137.3178,1200.9,1197.5,11.09720714]
[1609977887047,139.852,1200.9,1196.7,53.3463]
[1609977888047,141.523,1200.9,1196.7,53.3463]
[1609977888247,141.523,1200.9,1197.3,4.00959]
[1609977888548,141.523,1200.9,1197.3,3.2842]
[1609977889550,141.523,1200.9,1196.9,2.6847]
[1609977890253,4.00959,1197.0,1196.9,2.6847]
[1609977890652,3.2549,1199.1,1196.9,2.6847]
[1609977891754,69.5454,1199.8,1196.9,2.6847]
[1609977892354,69.5454,1199.8,1197.7,4.00959]
[1609977892757,69.5454,1199.8,1197.7,6.81869]
[1609977894258,69.5454,1199.8,1199.7,4.00959]
[1609977894856,1.6535,1199.8,1199.7,4.00959]
[1609977895456,1.6765,1200.7,1199.7,4.00959]
[1609977895956,1.6765,1200.7,1199.7,6.63629]
[1609977896256,4.00959,1200.3,1200.0,4.00959]
[1609977896457,1.6765,1200.7,1199.7,2.6267]
[1609977896757,49.5123,1201.8,1199.7,2.6267]
[1609977897658,51.1547,1201.8,1199.7,2.6267]
[1609977898259,4.00959,1201.7,1201.4,4.00959]
[1609977898461,5.65449,1201.7,1201.4,4.00959]
[1609977898658,5.65449,1201.7,1199.7,2.6267]
[1609977899060,1.6449,1201.7,1199.7,2.6267]
[1609977900163,3.0195,1203.6,1199.7,2.6267]
[1609977900365,3.0195,1203.6,1200.7,4.00959]
[1609977900664,46.5051,1202.6,1199.7,2.6267]
[1609977901165,48.1692,1202.6,1198.7,59.1473]
[1609977902065,46.5051,1202.6,1198.7,59.1473]
[1609977902266,46.5051,1202.6,1201.3,4.00959]
[1609977902565,46.5051,1202.6,1198.7,59.1473]
[1609977903165,48.1897,1202.6,1198.7,59.1473]
[1609977904366,4.00959,1200.7,1199.8,4.00959]
[1609977904865,46.5051,1202.6,1199.8,4.00959]
[1609977906068,46.5051,1202.6,1198.7,59.1473]
[1609977906367,4.00959,1200.1,1198.7,59.1473]
[1609977906567,5.66239,1200.1,1198.7,59.1473]
[1609977906770,4.00959,1200.1,1198.7,59.1473]
[1609977907369,7.15149,1200.1,1198.7,59.1473]
[1609977908276,4.00959,1199.2,1198.7,59.1473]
[1609977909072,2.7136,1200.5,1198.7,59.1473]
[1609977909972,2.7136,1200.5,1197.7,2.8091]
[1609977910171,2.7136,1200.5,1196.9,2.6847]
[1609977910372,4.00959,1198.9,1196.3,6.0076]
[1609977911276,4.00959,1198.9,1192.2,30.0]
[1609977911475,6.24779,1198.9,1192.2,30.0]
[1609977912478,4.00959,1197.5,1191.0,30.0]
[1609977914080,4.00959,1197.5,1190.9,36.0851]
[1609977914480,4.00959,1196.4,1196.0,4.00959]
[1609977915081,4.00959,1196.4,1191.0,35.8088]
[1609977916186,4.00959,1196.4,1191.0,5.8088]
[1609977916484,4.00959,1195.6,1191.0,5.8088]
[1609977917587,4.00959,1195.6,1190.9,6.0851]
[1609977917807,5.69259,1195.6,1190.9,6.0851]
[1609977917990,7.17069,1195.6,1190.9,6.0851]
[1609977918486,4.00959,1192.8,1190.9,6.0851]
[1609977919188,4.00959,1192.8,1189.6,10.67788345]
[1609977919802,5.70969,1192.8,1188.3,10.8020559]
[1609977920288,6.57239,1192.8,1186.4,5.5721]
[1609977920487,2.5628,1192.8,1190.1,4.00959]
[1609977920690,2.5628,1192.8,1186.4,5.5721]
[1609977920888,2.5628,1192.8,1190.1,2.8555]
[1609977922393,4.00959,1191.4,1190.2,4.00959]
[1609977922891,4.00959,1191.4,1190.1,2.8555]
[1609977923794,2.6697,1192.5,1190.1,2.8555]
[1609977924394,4.00959,1193.0,1191.3,4.00959]
[1609977924596,15.21365539,1197.2,1191.3,4.00959]
[1609977926398,4.00959,1193.7,1192.8,4.00959]
[1609977926599,4.00959,1193.7,1190.2,5.5532]
[1609977928302,3.1426,1195.4,1190.2,5.5532]
[1609977928502,3.1426,1195.4,1194.1,4.00959]
[1609977929004,15.19738693,1197.1,1194.1,4.00959]
[1609977929202,50.1806,1197.0,1194.1,4.00959]
[1609977929602,51.8453,1197.0,1194.1,4.00959]
[1609977929802,50.1806,1197.0,1194.1,4.00959]
[1609977930406,4.00959,1196.2,1193.1,54.315]
[1609977931907,1.6809,1196.2,1193.1,54.315]
[1609977932306,50.1806,1197.0,1193.1,54.315]
[1609977932506,4.00959,1196.6,1196.3,4.00959]
[1609977932706,4.00959,1196.6,1193.1,54.315]
[1609977934510,50.1806,1197.0,1196.5,4.00959]
[1609977935411,50.1806,1197.0,1193.1,54.315]
[1609977936413,4.00959,1196.5,1195.3,4.00959]
[1609977936611,4.00959,1196.5,1193.1,54.315]
[1609977937114,6.56459,1196.5,1193.1,54.315]
[1609977938014,6.56459,1196.5,1193.5,47.228]
[1609977938313,6.56459,1196.5,1193.5,3.4053]
[1609977938515,4.00959,1193.9,1193.5,3.4053]
[1609977939918,3.3094,1194.6,1193.5,3.4053]
[1609977940318,2.555,1196.5,1193.5,3.4053]
[1609977940620,4.00959,1194.4,1193.7,4.00959]
[1609977942322,2.1284,1195.7,1193.7,4.00959]
[1609977942628,2.555,1196.5,1194.8,4.00959]
[1609977942821,2.1678,1197.2,1194.8,4.00959]
[1609977943021,15.44102221,1199.2,1193.5,3.4053]
[1609977943424,15.44102221,1199.2,1190.8,5.6715]
[1609977943723,18.11302221,1199.2,1190.8,5.6715]
[1609977944627,4.00959,1195.4,1194.3,4.00959]
[1609977946429,2.6909,1197.3,1194.3,4.00959]
[1609977946629,4.00959,1195.7,1190.8,5.6715]
[1609977946832,5.66629,1195.7,1190.8,5.6715]
[1609977947230,4.00959,1195.7,1190.8,5.6715]
[1609977947429,4.00959,1195.7,1190.8,69.9208]
[1609977948640,4.00959,1194.7,1194.5,4.00959]
[1609977948832,2.2879,1196.2,1194.5,4.00959]
[1609977949231,3.9417,1196.2,1194.5,4.00959]
[1609977949432,2.2879,1196.2,1194.5,4.00959]
[1609977949631,2.2879,1196.2,1190.8,69.9208]
[1609977950534,4.00959,1195.6,1195.3,4.00959]
[1609977950737,4.00959,1195.6,1190.8,69.9208]
[1609977952634,3.3497,1196.2,1194.8,4.00959]
[1609977952833,3.3497,1196.2,1190.8,69.9208]
[1609977954235,68.135,1196.3,1190.8,69.9208]
[1609977954537,4.00959,1195.3,1195.1,4.00959]
[1609977954838,68.135,1196.3,1195.1,4.00959]
[1609977955139,68.135,1196.3,1190.8,69.9208]
[1609977956641,4.00959,1194.9,1194.0,4.00959]
[1609977957241,3.2026,1196.1,1194.0,4.00959]
[1609977958640,4.00959,1195.0,1191.5,48.9249]
[1609977959141,4.00959,1195.0,1190.8,5.6715]
[1609977960744,2.0963,1195.8,1190.8,5.6715]
[1609977960940,5.7703,1195.8,1190.8,9.0614]
[1609977962743,4.00959,1194.1,1194.0,4.00959]
[1609977963050,5.9705,1195.7,1194.0,4.00959]
[1609977963243,1.6672,1195.7,1194.0,4.00959]
[1609977963445,5.7703,1195.8,1194.0,4.00959]
[1609977964444,7.4453,1195.8,1190.9,5.8316]
[1609977964646,4.00959,1194.3,1190.9,5.8316]
[1609977964845,5.538,1195.7,1190.9,5.8316]
[1609977965948,5.813,1195.6,1190.9,5.8316]
[1609977966647,4.00959,1193.5,1193.3,4.00959]
[1609977966847,5.67269,1193.5,1190.9,5.8316]
[1609977967347,4.00959,1193.5,1190.8,9.0614]
[1609977968748,4.00959,1192.5,1192.4,4.00959]
[1609977969149,4.00959,1192.5,1190.8,3.3899]
[1609977969350,4.00959,1192.5,1190.1,2.8555]
[1609977969550,6.0446,1193.7,1187.1,6.141]
[1609977969751,7.7025,1193.7,1187.2,30.0]
[1609977969952,2.7342,1193.8,1187.2,30.0]
[1609977970253,2.7259,1194.5,1187.2,30.0]
[1609977970656,4.00959,1194.1,1187.2,30.0]
[1609977971153,3.3105,1195.4,1187.2,30.0]
[1609977971353,11.5804,1197.1,1187.2,30.0]
[1609977972655,4.00959,1195.4,1194.6,4.00959]
[1609977973962,3.1116,1196.8,1194.6,4.00959]
[1609977974357,11.5804,1197.1,1194.6,4.00959]
[1609977974757,4.00959,1196.4,1195.5,4.00959]
[1609977975561,11.5804,1197.1,1195.5,4.00959]
[1609977975562,48.42,1195.8,1195.5,4.00959]
[1609977976763,48.42,1195.8,1195.7,4.00959]
[1609977979768,34.8613,1195.8,1195.7,4.00959]
[1609977979966,136.4923,1198.5,1195.7,4.00959]
[1609977980672,134.8123,1198.5,1198.4,4.00959]
[1609977981268,134.8123,1198.5,1194.6,5.9422]
[1609977982666,134.8123,1198.5,1198.4,4.00959]
[1609977982866,134.8123,1198.5,1194.6,5.9422]
[1609977983871,134.8123,1198.5,1194.6,35.9422]
[1609977984670,134.8123,1198.5,1198.4,4.00959]
[1609977984872,4.00959,1198.9,1195.4,67.4109]
[1609977985170,5.6289,1199.7,1195.4,67.4109]
[1609977985372,7.2994,1199.8,1195.4,67.4109]
[1609977985571,5.6349,1199.8,1195.4,67.4109]
[1609977986473,7.2841,1199.8,1195.4,67.4109]
[1609977986671,4.00959,1199.5,1199.2,4.00959]
[1609977986873,5.7881,1200.5,1199.2,4.00959]
[1609977987070,58.9693,1200.6,1199.2,4.00959]
[1609977987271,55.2953,1200.6,1199.2,4.00959]
[1609977988876,4.00959,1199.9,1195.4,97.4109]
[1609977989077,4.00959,1199.9,1195.4,30.0]
[1609977989576,2.7641,1201.4,1195.4,30.0]
[1609977990077,2.7641,1201.4,1195.5,30.0]
[1609977990577,5.0,1202.0,1195.5,30.0]
[1609977990779,5.0,1202.0,1201.0,4.00959]
[1609977992281,5.0,1202.0,1195.8,30.0]